Cogmind - Beta 13 @@@ ROGUE MODE // 2024.06.16 @ 16:07:12 Player: N.W.L Result: Destroyed by L-31 Rogue with Katana Performance ------------- Evolutions (0) 0 Regions Visited (4) 800 Robots Destroyed (34) 170 Value Destroyed (717) 717 Prototype IDs (25) 500 Alien Tech Used (0) 0 Bonus (300) 300 TOTAL SCORE: 2487 Bonus ------- Aligned with FarCom 300 Cogmind --------- Core Integrity 0/250 Matter 285/300 Energy 0/100 System Corruption 0% Temperature Cool (0) Movement Core (350) Ox6 Location -9/Mines Parts ------- > --- POWER (1) -------- (None) > --- PROPULSION (2) --- (None) > --- UTILITY (2) ------ Heat Sink Large Storage Unit > --- WEAPON (2) ------- (None) > --- INVENTORY (15) --- Humpback Medium Matter Pod (100) Medium Matter Pod (100) Medium Matter Pod (100) High-capacity Matter Pod (200) Structural Scanner Structural Scanner Improved Terrain Scanner Light Armor Plating Chronowheel EM Shotgun Peak State ------------ > --- POWER ------------ (None) > --- PROPULSION ------- Light Treads Light Treads > --- UTILITY ---------- Heat Sink Large Storage Unit > --- WEAPON ----------- EM Shotgun EM Shotgun > --- INVENTORY -------- Medium Storage Unit Humpback High-capacity Matter Pod Structural Scanner Structural Scanner Improved Terrain Scanner Light Armor Plating Chronowheel EM Shotgun EM Shotgun Mining Laser Plasma Cutter [Rating: 11] Favorites ----------- Power Light Ion Engine Engine Light Ion Engine Propulsion Light Treads Treads Light Treads Utility Heat Sink Device Heat Sink Storage Small Storage Unit Protection Light Armor Plating Weapon EM Shotgun Energy Gun EM Shotgun Energy Cannon Beam Cannon Special Weapon Plasma Cutter Build | -11 -10 -10 -10 -9 ------- Run | Yrd Mat Min Exi Min Slots Evolved . | . . . . . Power . | . . . . . Propulsion . | . . . . . Utility . | . . . . . Weapon . | . . . . . Parts Attached 23 | 7 12 . 1 3 Power 2 | 1 1 . . . Engine 2 | 1 1 . . . Core . | . . . . . Reactor . | . . . . . Propulsion 3 | 2 1 . . . Treads 3 | 2 1 . . . Leg . | . . . . . Wheel . | . . . . . Hover . | . . . . . Flight . | . . . . . Utility 8 | 2 5 . 1 . Device 3 | 1 2 . . . Storage 4 | 1 2 . 1 . Processor . | . . . . . Hackware . | . . . . . Protection 1 | . 1 . . . Artifact . | . . . . . Weapon 10 | 2 5 . . 3 Energy Gun 7 | 2 4 . . 1 Energy Cannon 1 | . 1 . . . Ballistic Gun . | . . . . . Ballistic Cannon . | . . . . . Launcher . | . . . . . Special Weapon 2 | . . . . 2 Impact Weapon . | . . . . . Slashing Weapon . | . . . . . Piercing Weapon . | . . . . . Special Melee Weapon . | . . . . . Unidentified Prototypes . | . . . . . Parts Lost 11 | . 4 1 . 6 Power 2 | . 1 1 . . Propulsion 2 | . 1 . . 1 Utility 1 | . 1 . . . Weapon 6 | . 1 . . 5 Highest Loss Streak 6 | . 2 1 . 6 To Critical Strikes . | . . . . . Average Slot Usage (%) 90 | . 92 94 85 72 Engine 8 | . 13 9 . . Treads 24 | . 22 28 28 18 Device 12 | . 12 14 14 14 Storage 12 | . 11 14 14 14 Protection 1 | . 2 . . . Energy Gun 24 | . 22 28 28 23 Energy Cannon 3 | . 5 . . . Naked Turns . | . . . . . Heaviest Build 27 | 13 20 20 27 27 Greatest Support 40 | 40 40 40 40 40 Greatest Overweight (x) 1 | 1 . . . 1 Average Overweight (x) . | . . . . . Largest Inventory Capacity 15 | 8 10 10 15 15 Average Capacity 9 | 7 7 10 13 15 Most Carried 15 | 3 9 9 15 15 Average Carried 7 | 1 5 9 11 14 Final Capacity 15 | 8 10 10 15 15 Final Carried 15 | 3 9 9 15 12 Class Distribution -------------------- 100% | Mutant Dominant Class ---------------- Mutant | -10/Materials Mutant | -10/Mines Mutant | -10/Exiles Mutant | -9/Mines Resources | -11 -10 -10 -10 -9 ----------- Run | Yrd Mat Min Exi Min Matter Collected 629 | 270 319 . 40 . Remotely . | . . . . . Salvage Created 1310 | 179 1036 54 . 41 Parts 59 | 14 44 . . 1 Haulers Intercepted 2 | . 2 . . . Recyclers Shooed 1 | . 1 . . . Parts Field Recycled . | . . . . . Retrieved Matter . | . . . . . Parts Self-Destructed . | . . . . . Prevented . | . . . . . Kills | -11 -10 -10 -10 -9 ------- Run | Yrd Mat Min Exi Min Combat Hostiles Destroyed 22 | . 18 3 . 1 Guns 15 | . 11 3 . 1 Cannons 6 | . 6 . . . AOE 1 | . 1 . . . Classes Destroyed 8 | 3 4 1 . . Worker 2 | 1 1 . . . Tunneler 5 | 5 . . . . Hauler 2 | . 2 . . . Recycler 3 | 1 2 . . . Watcher 3 | . 3 . . . Swarmer 3 | . 3 . . . Grunt 16 | . 15 . . 1 Assembled 3 | . . 3 . . Best Kill Streak 4 | 4 3 1 . 1 Combat Bots Only 3 | . 3 1 . 1 Max Kills in Single Turn 1 | 1 1 1 . 1 Gunslinging . | . . . . . Exploded 1 | . 1 . . . Melee . | . . . . . Uniques/NPCs Destroyed . | . . . . . Combat | -11 -10 -10 -10 -9 -------- Run | Yrd Mat Min Exi Min Hostile Shots Fired 99 | . 70 14 . 15 Missed 21 | . 15 4 . 2 Damage Taken 1129 | . 627 124 . 378 Core 258 | . 66 23 . 169 Absorbed by Shields . | . . . . . Core Remaining (%) 100 | 100 . . . . Volleys Fired 98 | 13 67 9 . 9 Largest 2 | 2 2 2 . 2 Hottest 115 | 100 115 90 . 90 Shots Fired 186 | 26 134 14 . 12 Gun 142 | 26 93 14 . 9 Cannon 41 | . 41 . . . Launcher . | . . . . . Special 3 | . . . . 3 Kinetic . | . . . . . Thermal 155 | 26 126 . . 3 Explosive . | . . . . . Electromagnetic 31 | . 8 14 . 9 Robot Hit Streak 12 | 9 12 2 . 7 Robot Miss Streak 4 | 2 4 3 . 1 Penetration Max . | . . . . . Secondary Targets . | . . . . . Shots Hit Robots 127 | 19 88 9 . 11 Core Hits 62 | 8 40 9 . 5 Critical Kills . | . . . . . Critical Parts Destroyed . | . . . . . Critical Strikes 8 | 1 7 . . . Burn 8 | 1 7 . . . Melee Attacks . | . . . . . Impact . | . . . . . Slashing . | . . . . . Piercing . | . . . . . Sneak Attacks . | . . . . . Combat Hostiles . | . . . . . Follow-up Attacks . | . . . . . Damage Inflicted 1812 | 241 1317 81 . 173 Guns 1286 | 241 833 81 . 131 Cannons 436 | . 436 . . . Explosions 68 | . 48 . . 20 Melee . | . . . . . Ramming . | . . . . . Kinetic . | . . . . . Thermal 1532 | 241 1249 . . 42 Explosive . | . . . . . Electromagnetic 280 | . 68 81 . 131 Impact . | . . . . . Slashing . | . . . . . Piercing . | . . . . . Highest Corruption . | . . . . . Average Corruption . | . . . . . Corruption Purged . | . . . . . Corruption Blocked . | . . . . . Overload Shots . | . . . . . Overflow Damage 7 | . 7 . . . Projectiles 7 | . 7 . . . Explosions . | . . . . . Melee . | . . . . . Knockbacks . | . . . . . Impact . | . . . . . Kinetic . | . . . . . Secondary . | . . . . . Self-Inflicted Damage 16 | . 16 . . . Shots 1 | . 1 . . . Rammed . | . . . . . Targets Rammed . | . . . . . Kicked . | . . . . . Crushed . | . . . . . Highest Temperature 332 | 156 332 20 . 51 Average Temperature 76 | 64 85 10 . 32 Received Heat Transfer 349 | . 297 40 . 12 Effects 1 | . 1 . . . Damage (minor) 1 | . 1 . . . Siege Activations . | . . . . . Robots Corrupted . | . . . . . Combat Hostiles . | . . . . . Parts Fried 1 | . . . . 1 Impact Corruptions . | . . . . . Robots Melted . | . . . . . Combat Hostiles . | . . . . . Parts Melted 17 | 5 12 . . . Heat Transferred 4577 | 777 3676 . . 124 Parts Sabotaged . | . . . . . Parts Stolen . | . . . . . Parts Stripped . | . . . . . Power Chain Reactions 2 | . 1 . . 1 Alert | -11 -10 -10 -10 -9 ------- Run | Yrd Mat Min Exi Min Peak Influence 302 | 35 302 90 . 22 Initial 85 | . 22 85 . . Average 134 | 16 168 86 . 1 Maximum Alert Level 1 | . 1 . . . Low Security (%) 64 | 100 50 100 . 100 Level 1 35 | . 49 . . . Level 2 . | . . . . . Level 3 . | . . . . . Level 4 . | . . . . . Level 5 . | . . . . . High Security . | . . . . . Max Security . | . . . . . Squads Dispatched 5 | . 5 . . . Investigation 5 | . 5 . . . Extermination . | . . . . . Reinforcement . | . . . . . Assault . | . . . . . Garrison . | . . . . . Intercept . | . . . . . Searches Triggered . | . . . . . Construction Impeded . | . . . . . Haulers Reinforced . | . . . . . Active Scanning Responses . | . . . . . Cargo Convoy Interrupts . | . . . . . Stealth | -11 -10 -10 -10 -9 --------- Run | Yrd Mat Min Exi Min Distress Signals 3 | . 2 1 . . Communications Jammed . | . . . . . Distress Signals . | . . . . . Times Spotted 33 | . 28 3 . 2 Peak Tracking Total 4 | . 4 1 . 2 Tactical Retreats 2 | . 2 . . . Traps | -11 -10 -10 -10 -9 ------- Run | Yrd Mat Min Exi Min Traps Triggered 2 | . 2 . . . Indirectly . | . . . . . Trap Hack Attempts . | . . . . . Triggered . | . . . . . Disarmed . | . . . . . Reprogrammed . | . . . . . Reused . | . . . . . Traps Extracted . | . . . . . Installed . | . . . . . Triggered . | . . . . . Machines | -11 -10 -10 -10 -9 ---------- Run | Yrd Mat Min Exi Min Machines Disabled 1 | . 1 . . . Max in Single Turn 1 | . 1 . . . Machines Repaired . | . . . . . Machines Dismantled . | . . . . . Machines Sabotaged . | . . . . . Overloaded Fab Kills . | . . . . . Hacking | -11 -10 -10 -10 -9 --------- Run | Yrd Mat Min Exi Min Machines Accessed 9 | . 7 . 2 . Terminals 4 | . 4 . . . Fabricators . | . . . . . Repair Stations 1 | . 1 . . . Recycling Units 2 | . 2 . . . Scanalyzers . | . . . . . Garrison Access . | . . . . . Total Hacks 29 | . 24 . 5 . Successful 15 | . 10 . 5 . Failed 14 | . 14 . . . Catastrophic 2 | . 2 . . . Database Lockouts . | . . . . . Manual 8 | . 7 . 1 . Terminals 14 | . 14 . . . Fabricators . | . . . . . Repair Stations 3 | . 3 . . . Recycling Units 7 | . 7 . . . Scanalyzers . | . . . . . Garrison Access . | . . . . . Terminal Hacks 12 | . 7 . 5 . Record 4 | . . . 4 . Part Schematic 1 | . 1 . . . Robot Analysis 1 | . 1 . . . Prototype ID Bank 1 | . 1 . . . Transport Status 1 | . 1 . . . Hauler Manifests 1 | . 1 . . . Zone Layout 2 | . 2 . . . Derelict Proto ID Bank 1 | . . . 1 . Fabricator Hacks . | . . . . . Repair Station Hacks 1 | . 1 . . . Scan Component 1 | . 1 . . . Recycling Unit Hacks 1 | . 1 . . . Retrieve Components 1 | . 1 . . . Scanalyzer . | . . . . . Garrison Access Hacks . | . . . . . Unauthorized Hacks 1 | . 1 . . . Terminals . | . . . . . Fabricators . | . . . . . Repair Stations . | . . . . . Recycling Units 1 | . 1 . . . Tunnel 1 | . 1 . . . Scanalyzers . | . . . . . Garrison Access . | . . . . . Data Cores Recovered . | . . . . . Used . | . . . . . Hacking Detections 7 | . 7 . . . Full Trace Events 5 | . 5 . . . Feedback Events . | . . . . . Feedback Blocked . | . . . . . Robot Schematics Acquired . | . . . . . Robots Built . | . . . . . Authchips . | . . . . . Time . | . . . . . Total Robot Build Rating . | . . . . . Part Schematics Acquired 1 | . 1 . . . Parts Built . | . . . . . Authchips . | . . . . . Time . | . . . . . Total Part Build Rating . | . . . . . Parts Repaired . | . . . . . Time . | . . . . . Parts Recycled . | . . . . . Recycled Matter . | . . . . . Retrieved Matter . | . . . . . Retrieved Components 6 | . 6 . . . Parts Scanalyzed . | . . . . . Part Schematics Acquired . | . . . . . Parts Damaged . | . . . . . Bothacking | -11 -10 -10 -10 -9 ------------ Run | Yrd Mat Min Exi Min Used RIF Installer . | . . . . . Robots Hacked . | . . . . . Non-combat . | . . . . . Combat . | . . . . . Robot Hacks Applied . | . . . . . Relay Couplers Released . | . . . . . Fabnet Peak Effective % . | . . . . . Robots Rewired . | . . . . . Allies Hacked . | . . . . . Hacks Repelled . | . . . . . Allies | -11 -10 -10 -10 -9 -------- Run | Yrd Mat Min Exi Min Total Allies 2 | . . 2 . . Largest Group 2 | . . 2 2 . Highest-Rated Group 42 | . . 42 42 . Highest-Rated Ally 31 | . . 31 31 . Total Orders . | . . . . . Ally Attacks . | . . . . . Total Damage . | . . . . . Kills . | . . . . . Allies Corrupted . | . . . . . Allies Melted . | . . . . . Intel | -11 -10 -10 -10 -9 ------- Run | Yrd Mat Min Exi Min Robot Analysis Total 1 | . 1 . . . Derelict Logs Recovered . | . . . . . Drone Launches . | . . . . . Drone Recoveries . | . . . . . Exploration | -11 -10 -10 -10 -9 ------------- Run | Yrd Mat Min Exi Min Turns Passed 2897 | 181 1486 317 820 93 Spaces Moved 1356 | 83 725 108 408 32 Core 5 | 5 . . . . Treads 1351 | 78 725 108 408 32 Legs . | . . . . . Wheels . | . . . . . Hover . | . . . . . Flight . | . . . . . Fastest Speed 50 | 50 160 160 160 160 Average Speed 159 | 153 160 160 160 170 Slowest Speed 240 | 160 160 160 160 240 Overloaded Moves . | . . . . . Propulsion Burnouts . | . . . . . Robots Hopped . | . . . . . Cave-ins Triggered . | . . . . . Exploration Rate (%) 39 | 6 81 17 77 16 Regions Visited 4 Branch Regions 3 Pre-discovered Areas 2 | . 1 . 1 . Known Exits Taken . | . . . . . Unknown Exits Taken 4 | 1 1 1 1 . Scrap Searched . | . . . . . Spaces Dug . | . . . . . Terrain Destroyed 6 | . 4 . . 2 Melee . | . . . . . Projectile . | . . . . . AOE 6 | . 4 . . 2 Terrain Rammed . | . . . . . Walls Destroyed . | . . . . . Machines Disabled . | . . . . . Actions | -11 -10 -10 -10 -9 --------- Run | Yrd Mat Min Exi Min Total 1891 | 107 915 238 575 56 Wait 395 | . 100 122 161 12 Move 1352 | 82 724 107 407 32 Hop . | . . . . . Pick Up 16 | 4 7 . 5 . Fast Attach 12 | 7 5 . . . Attach 5 | . 2 . . 3 Detach 1 | . 1 . . . Swap 6 | . 5 . 1 . Drop 6 | 1 4 . 1 . Fire 98 | 13 67 9 . 9 Melee . | . . . . . Ram . | . . . . . Kick . | . . . . . Crush . | . . . . . Escape Stasis . | . . . . . Rewire . | . . . . . Trap . | . . . . . Miscellaneous . | . . . . . Route ------- -11/Scrapyard -10/Materials (discovered 4 exits: [*Mat x3] / [*Min]) -10/Mines -10/Exiles -9/Mines History --------- Turn | Location | Event 5 | -11/Scrapyard | Discovered new exit (range 16) 182 | -11/Scrapyard | Entered Materials 316 | -10/Materials | Build established: Mutant 387 | -10/Materials | Discovered new exit (range 11) 662 | -10/Materials | Discovered new exit (range 11) 689 | -10/Materials | Discovered new exit (range 14) 976 | -10/Materials | Discovered new exit (range 12) 1668 | -10/Materials | Entered Mines 1673 | -10/Mines | Deemed a non-threat by the Exiles lab entrance 1673 | -10/Mines | Discovered new exit (range 7) 1700 | -10/Mines | Assembled infested the area 1985 | -10/Mines | Entered Exiles 1985 | -10/Exiles | Accompanied by 2 allies 2015 | -10/Exiles | Led the pair of lost Derelicts to a safe place 2030 | -10/Exiles | Met 8R-AWN 2108 | -10/Exiles | Met EX-HEX 2204 | -10/Exiles | Met EX-DEC 2370 | -10/Exiles | Visited The Gauntlet 2449 | -10/Exiles | Learned location of Zion (-6) 2475 | -10/Exiles | Met EX-BIN 2497 | -10/Exiles | Aligned with FarCom system 2499 | -10/Exiles | Given EX-Vault access code 2537 | -10/Exiles | Opened EX-Vault 2552 | -10/Exiles | Found Chronowheel 2588 | -10/Exiles | Warned to stay clear of 0b10 Research branches 2782 | -10/Exiles | Discovered new exit (range 15) 2805 | -10/Exiles | Left Exiles lab with Chronowheel 2805 | -10/Exiles | Entered Mines 2884 | -9/Mines | Core integrity fell below 50% 2889 | -9/Mines | Core integrity fell below 20% 2898 | -9/Mines | Destroyed by L-31 Rogue with Katana Last Messages --------------- 02716_ Dropped Med. Storage Unit. 02717_ Acquired Med. Matter Pod. 02718_ Extracted 10 matter. 02719_ Acquired Med. Matter Pod. 02722_ Extracted 10 matter. 02724_ Acquired Med. Matter Pod. 02755_ Extracted 10 matter. 02782_ EXIT=FOUND LOCATION=UNKNOWN GOAL=ESCAPE 02805_ Receiving FarCom transmissions... 02852_ Lgt. Treads destroyed. 02863_ Chain reaction triggered in Ion Engine. 02863_ Heat Sink fried. 02863_ G-34 Mercenary destroyed. 02870_ EM Shotgun destroyed. 02873_ Lgt. Treads severed. 02881_ EM Shotgun destroyed. 02896_ Plasma Cutter destroyed. 02898_ Mining Laser destroyed. Map ----- +----------------------------------------------------+ | ?????????????????????????????? ?????????? | | ?????????????????????????????? ?????????? | | ?????????????????????????????? ??????????? | | ?????????????????????????????? ??????????? | | ?????????????????????????????# ??????????? | | ?????????????????#???????????# #??????????? | | ????????????????# ???????????# ###????????? | | ???????????????? ?????##?### ##???????? | | ????????????????? ????? ?? #???????? | | ????????????????? ????? ?? #???????? | | ?????????# ??????# ????# #??# ##??????? | | ?????????# ##???# ???# #### """ ##?????? | | ?????????? ##?# ???# """ #?????? | | ?????????? ## ???# #### """ #?????? | | ??????????? #??# #??## #?????? | | ???????????? ### #???# ##?????? | | ????????????? ##??# ##??????? | | ????????????? """ #??# #???????? | | ???????????? """ ##?## #???????? | | ???????????? """ ##?### #???????? | | ??????? """ = ##??# #???????? | | ?????????# % ##?# #???????? | | ?????????#### #; ### #???????? | | ????????????## #?## ## #???????? | | ?????????????## #???##l #???????? | | ??????????????####?????##@ ### #???????? | | ????????????????????????####?#######???????? | | ???????????????????????????????????????????? | | ???????????????????????????????????????????? | | | | | | | | | | | | | | | | | | | | | | | | | | | | | | | | | | | | | | | | | | | +----------------------------------------------------+ Best States ------------- Heat Dissipation 35 Energy Generation 10 Energy Capacity 125 Matter Stores 300 Matter Capacity 300 Sight Range 16 Terrain Scan Density 10 Armor Coverage 150 Evasion (%) 40 Recoil Reduction 2 Item Schematics ----------------- Cargo Storage Unit | -10/Materials | Hacked Robot Schematics ------------------ None Fabricated ------------ Nothing Alien Tech Used ----------------- None Achievements -------------- None Challenges ------------ None Game ------ Seed ThermicBombardmentCompressor Manual? 0 Play Time 00:17:13 Cumulative 146.3 hours Start 2024.06.16 @ 15:50:26 End 2024.06.16 @ 16:07:12 Sessions 1 Manual Loads 0 Difficulty Rogue Special Mode None Game No. 68 Rogue 68 Adventurer 0 Explorer 0 Win Type - Total 2 Types 1/0/1/0/0/0/0/0/0 Lore% 64 Gallery% 77 Achievement% 59 Wizard Run 0 Options --------- Layout 1 ASCII 0 Keyboard 0 Movement Mouse Keybinds 0 Fullscreen 2 Font 18/SmallcapsGlow Map View 50x40 Zoom Use 0% Tactical HUD 1 Map Filters NONE Filters NONE Steam 1 RUN: 3a9a9fd6-1821-4553-98bf-3af6637310c7